[Event "*** Titled Tuesday Blitz"]
[Site "Chess.com"]
[Date "2020.04.14"]
[Round "7"]
[White "MokshAD1603"]
[Black "PawnEatingZombie"]
[Result "1-0"]
[WhiteElo "2338"]
[BlackElo "2136"]
[TimeControl "180+1"]
[EndTime "11:12:57 PDT"]
[Termination "MokshAD1603 won by checkmate"]

1. d4 {[%clk 0:02:53.8]} 1... d5 {[%clk 0:02:59.2]} 2. c4 {[%clk 0:02:48.3]}
2... e6 {[%clk 0:02:58.8]} 3. Nf3 {[%clk 0:02:45.5]} 3... dxc4 {[%clk
0:02:57.6]} 4. e4 {[%clk 0:02:44.8]} 4... b5 {[%clk 0:02:57.4]} 5. a4 {[%clk
0:02:42.3]} 5... c6 {[%clk 0:02:56.5]} 6. Nc3 {[%clk 0:02:40.7]} 6... Bb4 {[%clk
0:02:49.3]} 7. Be2 {[%clk 0:02:37.9]} 7... Bb7 {[%clk 0:02:46.5]} 8. O-O {[%clk
0:02:37.4]} 8... a6 {[%clk 0:02:46.4]} 9. Bg5 {[%clk 0:02:33.2]} 9... Nf6 {[%clk
0:02:30.9]} 10. e5 {[%clk 0:02:32.1]} 10... h6 {[%clk 0:02:31.1]} 11. Bh4 {[%clk
0:02:26.2]} 11... g5 {[%clk 0:02:30.9]} 12. Nxg5 {[%clk 0:02:26]} 12... hxg5
{[%clk 0:02:30.5]} 13. Bxg5 {[%clk 0:02:26.7]} 13... Nbd7 {[%clk 0:02:30.9]} 14.
Ne4 {[%clk 0:02:25.7]} 14... Be7 {[%clk 0:02:20.3]} 15. exf6 {[%clk 0:02:21.4]}
15... Nxf6 {[%clk 0:02:17.4]} 16. Nxf6+ {[%clk 0:02:09.5]} 16... Bxf6 {[%clk
0:02:17.4]} 17. Bxf6 {[%clk 0:02:05.9]} 17... Qxf6 {[%clk 0:02:17]} 18. Bf3
{[%clk 0:02:06.8]} 18... O-O-O {[%clk 0:02:06.5]} 19. axb5 {[%clk 0:02:06.4]}
19... cxb5 {[%clk 0:02:06.7]} 20. Bxb7+ {[%clk 0:01:57.2]} 20... Kxb7 {[%clk
0:02:07.6]} 21. Qe2 {[%clk 0:01:56.4]} 21... Rxd4 {[%clk 0:01:53]} 22. h3 {[%clk
0:01:51.7]} 22... Rhd8 {[%clk 0:01:36.6]} 23. Rfd1 {[%clk 0:01:46.9]} 23... Qf4
{[%clk 0:01:29.7]} 24. Rxd4 {[%clk 0:01:42]} 24... Qxd4 {[%clk 0:01:28.9]} 25.
Qf3+ {[%clk 0:01:41]} 25... Kb6 {[%clk 0:01:26.6]} 26. Qxf7 {[%clk 0:01:41.5]}
26... Rd6 {[%clk 0:01:08.8]} 27. Qf8 {[%clk 0:01:40]} 27... Rc6 {[%clk
0:00:35.2]} 28. Re1 {[%clk 0:01:28.2]} 28... Qxb2 {[%clk 0:00:32.1]} 29. Qd8+
{[%clk 0:01:23.2]} 29... Kc5 {[%clk 0:00:30.4]} 30. Qe7+ {[%clk 0:01:23.1]}
30... Kb6 {[%clk 0:00:28.5]} 31. Rd1 {[%clk 0:01:07.4]} 31... c3 {[%clk
0:00:21.9]} 32. Qd8+ {[%clk 0:01:06.8]} 32... Kc5 {[%clk 0:00:20.5]} 33. Qd4#
{[%clk 0:01:06.9]} 1-0

[Event "*** Titled Tuesday Blitz"]
[Site "Chess.com"]
[Date "2020.04.14"]
[Round "7"]
[White "731291"]
[Black "Sviridov_Valery"]
[Result "0-1"]
[WhiteElo "2619"]
[BlackElo "2834"]
[TimeControl "180+1"]
[EndTime "11:12:58 PDT"]
[Termination "Sviridov_Valery won by resignation"]

1. d4 {[%clk 0:03:00.9]} 1... g6 {[%clk 0:02:53.9]} 2. e4 {[%clk 0:02:59.2]}
2... Bg7 {[%clk 0:02:54.2]} 3. Nf3 {[%clk 0:02:59.3]} 3... d6 {[%clk 0:02:54.6]}
4. Bc4 {[%clk 0:02:54.9]} 4... a6 {[%clk 0:02:53.3]} 5. Qe2 {[%clk 0:02:52.5]}
5... e6 {[%clk 0:02:52.5]} 6. O-O {[%clk 0:02:50.4]} 6... b6 {[%clk 0:02:51.1]}
7. c3 {[%clk 0:02:49]} 7... Bb7 {[%clk 0:02:50.6]} 8. Re1 {[%clk 0:02:47.2]}
8... Nd7 {[%clk 0:02:51]} 9. Nbd2 {[%clk 0:02:39.1]} 9... Ne7 {[%clk 0:02:50.1]}
10. Nf1 {[%clk 0:02:37.9]} 10... O-O {[%clk 0:02:49]} 11. Bd3 {[%clk 0:02:36.1]}
11... c5 {[%clk 0:02:48.2]} 12. Ng3 {[%clk 0:02:35.7]} 12... b5 {[%clk
0:02:47.7]} 13. h4 {[%clk 0:02:35.2]} 13... cxd4 {[%clk 0:02:45.8]} 14. cxd4
{[%clk 0:02:34.8]} 14... Nc6 {[%clk 0:02:46]} 15. Be3 {[%clk 0:02:33.9]} 15...
Nf6 {[%clk 0:02:44.5]} 16. h5 {[%clk 0:02:28.4]} 16... Rc8 {[%clk 0:02:39.3]}
17. a3 {[%clk 0:02:27.8]} 17... Ng4 {[%clk 0:02:35.6]} 18. Rac1 {[%clk
0:02:06.8]} 18... Nxe3 {[%clk 0:02:34.6]} 19. Qxe3 {[%clk 0:02:06.7]} 19... Qb6
{[%clk 0:02:32.6]} 20. hxg6 {[%clk 0:01:55.9]} 20... hxg6 {[%clk 0:02:31.8]} 21.
e5 {[%clk 0:01:28.5]} 21... dxe5 {[%clk 0:02:06.7]} 22. Ne4 {[%clk 0:01:19.7]}
22... Nxd4 {[%clk 0:02:03.6]} 23. Nfg5 {[%clk 0:01:18.7]} 23... Rxc1 {[%clk
0:01:56.5]} 24. Rxc1 {[%clk 0:01:15]} 24... f6 {[%clk 0:01:54.2]} 25. Qh3 {[%clk
0:01:03.5]} 25... fxg5 {[%clk 0:01:54.1]} 26. Nxg5 {[%clk 0:01:04.4]} 26... Rf6
{[%clk 0:01:53.8]} 27. Kh2 {[%clk 0:00:38.6]} 27... e4 {[%clk 0:01:51.9]} 28.
Bxe4 {[%clk 0:00:37.4]} 28... Qd6+ {[%clk 0:01:43.4]} 29. Kh1 {[%clk 0:00:34.6]}
29... Qf4 {[%clk 0:01:34]} 30. Rc5 {[%clk 0:00:19.2]} 30... Nf5 {[%clk
0:01:20.5]} 31. Bxb7 {[%clk 0:00:17]} 31... Qxg5 {[%clk 0:01:20.1]} 32. g4
{[%clk 0:00:12.5]} 32... Ng3+ {[%clk 0:01:19]} 33. Qxg3 {[%clk 0:00:11.3]} 33...
Qxc5 {[%clk 0:01:19.9]} 0-1

[Event "*** Titled Tuesday Blitz"]
[Site "Chess.com"]
[Date "2020.04.14"]
[Round "7"]
[White "Eltarolo"]
[Black "Luibov_AN"]
[Result "1-0"]
[WhiteElo "2344"]
[BlackElo "2177"]
[TimeControl "180+1"]
[EndTime "11:13:02 PDT"]
[Termination "Eltarolo won by resignation"]

1. e4 {[%clk 0:03:00.9]} 1... g6 {[%clk 0:02:59]} 2. d4 {[%clk 0:03:00.6]} 2...
Bg7 {[%clk 0:02:58.5]} 3. Nc3 {[%clk 0:03:01]} 3... c5 {[%clk 0:02:58.7]} 4. Be3
{[%clk 0:03:01.1]} 4... Nc6 {[%clk 0:02:58.5]} 5. Nf3 {[%clk 0:02:57.3]} 5...
Qb6 {[%clk 0:02:57.8]} 6. Nd5 {[%clk 0:02:51.8]} 6... Qa5+ {[%clk 0:02:56.7]} 7.
Bd2 {[%clk 0:02:47.5]} 7... Qd8 {[%clk 0:02:55.5]} 8. c3 {[%clk 0:02:37.4]} 8...
cxd4 {[%clk 0:02:51.1]} 9. cxd4 {[%clk 0:02:36]} 9... Nxd4 {[%clk 0:02:50.6]}
10. Nxd4 {[%clk 0:02:31.7]} 10... Bxd4 {[%clk 0:02:50.5]} 11. Rc1 {[%clk
0:02:23]} 11... Be5 {[%clk 0:02:38.1]} 12. Bc3 {[%clk 0:02:00.8]} 12... Bxc3+
{[%clk 0:02:37.3]} 13. Rxc3 {[%clk 0:02:00.7]} 13... Kf8 {[%clk 0:02:29.3]} 14.
Qd4 {[%clk 0:01:32.5]} 14... f6 {[%clk 0:02:25.5]} 15. Nc7 {[%clk 0:01:32.6]}
15... d6 {[%clk 0:02:03]} 16. Nxa8 {[%clk 0:01:25.6]} 16... Be6 {[%clk
0:01:48.3]} 17. Nc7 {[%clk 0:01:18.9]} 17... Bxa2 {[%clk 0:01:44.2]} 18. b3
{[%clk 0:01:10.7]} 18... Qd7 {[%clk 0:01:39.7]} 19. Bb5 {[%clk 0:00:53.3]} 19...
Qg4 {[%clk 0:01:34.1]} 20. O-O {[%clk 0:00:45.3]} 20... a6 {[%clk 0:01:29.4]}
21. Bc4 {[%clk 0:00:45]} 21... b5 {[%clk 0:01:24.9]} 22. Bd5 {[%clk 0:00:38.1]}
22... Nh6 {[%clk 0:01:11.5]} 23. Ne6+ {[%clk 0:00:37.1]} 23... Kf7 {[%clk
0:01:04.1]} 24. f3 {[%clk 0:00:20.5]} 24... Qh4 {[%clk 0:00:57.2]} 25. g3 {[%clk
0:00:19.8]} 1-0

[Event "*** Titled Tuesday Blitz"]
[Site "Chess.com"]
[Date "2020.04.14"]
[Round "7"]
[White "BogdanDeac"]
[Black "Nitzan_Steinberg"]
[Result "0-1"]
[WhiteElo "2743"]
[BlackElo "2907"]
[TimeControl "180+1"]
[EndTime "11:13:05 PDT"]
[Termination "Nitzan_Steinberg won on time"]

1. Nf3 {[%clk 0:02:29.9]} 1... d5 {[%clk 0:02:59.7]} 2. d4 {[%clk 0:02:28.4]}
2... Nf6 {[%clk 0:02:59.2]} 3. c4 {[%clk 0:02:28.1]} 3... c6 {[%clk 0:02:59.5]}
4. Nc3 {[%clk 0:02:27.6]} 4... e6 {[%clk 0:02:59.5]} 5. Bg5 {[%clk 0:02:25.7]}
5... Nbd7 {[%clk 0:02:59.7]} 6. cxd5 {[%clk 0:02:24.1]} 6... exd5 {[%clk
0:02:59.4]} 7. e3 {[%clk 0:02:24.6]} 7... Qa5 {[%clk 0:02:59.1]} 8. Bd3 {[%clk
0:02:04.8]} 8... Ne4 {[%clk 0:02:58.7]} 9. Qc2 {[%clk 0:02:04.8]} 9... Nxg5
{[%clk 0:02:57.6]} 10. Nxg5 {[%clk 0:02:03.5]} 10... g6 {[%clk 0:02:57.8]} 11.
f4 {[%clk 0:02:00.3]} 11... Be7 {[%clk 0:02:55.2]} 12. Nf3 {[%clk 0:01:56.6]}
12... Nf6 {[%clk 0:02:48.2]} 13. O-O {[%clk 0:01:56.3]} 13... O-O {[%clk
0:02:42.5]} 14. Rae1 {[%clk 0:01:50.2]} 14... c5 {[%clk 0:02:39.4]} 15. dxc5
{[%clk 0:01:22.7]} 15... Bxc5 {[%clk 0:02:29.2]} 16. a3 {[%clk 0:01:17.4]} 16...
Qd8 {[%clk 0:02:22]} 17. f5 {[%clk 0:01:01.5]} 17... Kg7 {[%clk 0:02:19.7]} 18.
Nb5 {[%clk 0:00:58.1]} 18... Qe7 {[%clk 0:02:10.2]} 19. Nbd4 {[%clk 0:00:45.9]}
19... Bd7 {[%clk 0:02:09.1]} 20. Ne5 {[%clk 0:00:15.7]} 20... Rac8 {[%clk
0:01:54.7]} 21. Nxd7 {[%clk 0:00:14.9]} 21... Nxd7 {[%clk 0:01:34.9]} 22. Qf2
{[%clk 0:00:11.9]} 22... Nf6 {[%clk 0:01:20.6]} 23. Qh4 {[%clk 0:00:11.2]} 23...
Qe5 {[%clk 0:01:16]} 24. h3 {[%clk 0:00:04.3]} 24... Rce8 {[%clk 0:01:11.9]} 25.
Qf4 {[%clk 0:00:02.5]} 25... Qxf4 {[%clk 0:01:06.8]} 26. Rxf4 {[%clk 0:00:01.9]}
26... g5 {[%clk 0:01:06.9]} 27. Rff1 {[%clk 0:00:01]} 27... Rxe3 {[%clk
0:01:06.2]} 0-1

[Event "*** Titled Tuesday Blitz"]
[Site "Chess.com"]
[Date "2020.04.14"]
[Round "7"]
[White "Ar4uha"]
[Black "FCChelsea14"]
[Result "1-0"]
[WhiteElo "2669"]
[BlackElo "2799"]
[TimeControl "180+1"]
[EndTime "11:13:07 PDT"]
[Termination "Ar4uha won by checkmate"]

1. e4 {[%clk 0:02:54.5]} 1... c6 {[%clk 0:02:59.7]} 2. d4 {[%clk 0:02:50.7]}
2... d5 {[%clk 0:02:59.9]} 3. exd5 {[%clk 0:02:50.9]} 3... cxd5 {[%clk
0:03:00.2]} 4. Bd3 {[%clk 0:02:51.6]} 4... Nc6 {[%clk 0:03:00.3]} 5. c3 {[%clk
0:02:51.7]} 5... Nf6 {[%clk 0:03:00.5]} 6. h3 {[%clk 0:02:48.8]} 6... g6 {[%clk
0:02:59.8]} 7. Qc2 {[%clk 0:02:48.3]} 7... Bg7 {[%clk 0:02:58.2]} 8. Bf4 {[%clk
0:02:48.8]} 8... O-O {[%clk 0:02:55.9]} 9. Nf3 {[%clk 0:02:49.3]} 9... Re8
{[%clk 0:02:38.6]} 10. O-O {[%clk 0:02:48.5]} 10... Nh5 {[%clk 0:02:37.9]} 11.
Be3 {[%clk 0:02:40.7]} 11... e5 {[%clk 0:02:33.5]} 12. dxe5 {[%clk 0:02:40.7]}
12... Nxe5 {[%clk 0:02:33.6]} 13. Nxe5 {[%clk 0:02:39.8]} 13... Bxe5 {[%clk
0:02:32.7]} 14. Nd2 {[%clk 0:02:38.8]} 14... Nf4 {[%clk 0:02:32]} 15. Nf3 {[%clk
0:02:37.6]} 15... Nxd3 {[%clk 0:02:21.7]} 16. Qxd3 {[%clk 0:02:38.5]} 16... Bf5
{[%clk 0:02:16.8]} 17. Qd2 {[%clk 0:02:37.7]} 17... Bg7 {[%clk 0:02:14.2]} 18.
Bd4 {[%clk 0:02:37.5]} 18... Bf8 {[%clk 0:02:04.5]} 19. Qf4 {[%clk 0:02:28.9]}
19... Be4 {[%clk 0:01:59.5]} 20. Rfe1 {[%clk 0:02:28.4]} 20... Bd6 {[%clk
0:01:49]} 21. Qh6 {[%clk 0:02:17.9]} 21... Bf8 {[%clk 0:01:49]} 22. Qf4 {[%clk
0:02:15.5]} 22... Qd6 {[%clk 0:01:36.1]} 23. Qxd6 {[%clk 0:02:01.2]} 23... Bxd6
{[%clk 0:01:35.7]} 24. Nd2 {[%clk 0:02:01.7]} 24... Bf5 {[%clk 0:01:34]} 25.
Rxe8+ {[%clk 0:01:55.5]} 25... Rxe8 {[%clk 0:01:33.4]} 26. Bxa7 {[%clk
0:01:56.4]} 26... Re2 {[%clk 0:01:28.6]} 27. Be3 {[%clk 0:01:54.3]} 27... d4
{[%clk 0:01:20.7]} 28. cxd4 {[%clk 0:01:50.8]} 28... Bb4 {[%clk 0:01:20.8]} 29.
Nc4 {[%clk 0:01:37.2]} 29... b5 {[%clk 0:01:20.6]} 30. Ne5 {[%clk 0:01:23.2]}
30... Rxb2 {[%clk 0:01:14.8]} 31. a4 {[%clk 0:01:23.7]} 31... f6 {[%clk
0:01:00.3]} 32. Nc6 {[%clk 0:01:18.4]} 32... bxa4 {[%clk 0:00:57.5]} 33. Rxa4
{[%clk 0:01:13.3]} 33... Rb1+ {[%clk 0:00:57.5]} 34. Kh2 {[%clk 0:01:13]} 34...
Bd6+ {[%clk 0:00:58]} 35. f4 {[%clk 0:01:11.3]} 35... Be4 {[%clk 0:00:57.8]} 36.
Ra8+ {[%clk 0:01:00.7]} 36... Kg7 {[%clk 0:00:55.4]} 37. Ra7+ {[%clk 0:01:01.6]}
37... Kh6 {[%clk 0:00:49.3]} 38. Ne5 {[%clk 0:00:59.4]} 38... Rb2 {[%clk
0:00:32.9]} 39. Ng4+ {[%clk 0:00:55.4]} 39... Kh5 {[%clk 0:00:32.7]} 40. Rxh7#
{[%clk 0:00:55.9]} 1-0

[Event "*** Titled Tuesday Blitz"]
[Site "Chess.com"]
[Date "2020.04.14"]
[Round "7"]
[White "MosheFriedland"]
[Black "AshotParvanyan"]
[Result "0-1"]
[WhiteElo "2384"]
[BlackElo "2585"]
[TimeControl "180+1"]
[EndTime "11:13:15 PDT"]
[Termination "AshotParvanyan won by resignation"]

1. e4 {[%clk 0:03:00.9]} 1... e5 {[%clk 0:02:57.6]} 2. Nf3 {[%clk 0:03:01.2]}
2... Nc6 {[%clk 0:02:57.7]} 3. Bc4 {[%clk 0:03:01.1]} 3... Bc5 {[%clk
0:02:56.8]} 4. c3 {[%clk 0:03:01.3]} 4... Nf6 {[%clk 0:02:56.8]} 5. d3 {[%clk
0:03:01.5]} 5... O-O {[%clk 0:02:56.1]} 6. b4 {[%clk 0:02:58]} 6... Bb6 {[%clk
0:02:54.1]} 7. Bg5 {[%clk 0:02:58.2]} 7... h6 {[%clk 0:02:50.8]} 8. Bh4 {[%clk
0:02:58.3]} 8... d6 {[%clk 0:02:47.2]} 9. O-O {[%clk 0:02:57.3]} 9... Be6 {[%clk
0:02:46.8]} 10. Nbd2 {[%clk 0:02:56.7]} 10... Qe7 {[%clk 0:02:40.8]} 11. a4
{[%clk 0:02:54.9]} 11... a5 {[%clk 0:02:38.1]} 12. b5 {[%clk 0:02:55]} 12... Nd8
{[%clk 0:02:37.7]} 13. Re1 {[%clk 0:02:48]} 13... Bxc4 {[%clk 0:01:52]} 14. Nxc4
{[%clk 0:02:47.1]} 14... Ne6 {[%clk 0:01:51.4]} 15. d4 {[%clk 0:02:29.5]} 15...
exd4 {[%clk 0:01:16.4]} 16. cxd4 {[%clk 0:02:26.4]} 16... g5 {[%clk 0:01:15.9]}
17. Bg3 {[%clk 0:02:22.2]} 17... Nh5 {[%clk 0:00:45.5]} 18. Bxd6 {[%clk
0:02:01.6]} 18... cxd6 {[%clk 0:00:45.3]} 19. Nxb6 {[%clk 0:02:01.7]} 19... g4
{[%clk 0:00:36.3]} 20. Nd5 {[%clk 0:02:00.8]} 20... Qd8 {[%clk 0:00:34]} 21. Nh4
{[%clk 0:02:00.8]} 21... Qxh4 {[%clk 0:00:32.9]} 22. e5 {[%clk 0:01:54.4]} 22...
Qg5 {[%clk 0:00:25.3]} 23. Re4 {[%clk 0:01:40.5]} 23... Nhf4 {[%clk 0:00:22.2]}
24. g3 {[%clk 0:01:27.4]} 24... Nh3+ {[%clk 0:00:15.3]} 25. Kg2 {[%clk
0:01:27.5]} 25... h5 {[%clk 0:00:13.4]} 26. Nf6+ {[%clk 0:01:25.5]} 26... Kh8
{[%clk 0:00:12]} 27. Nxg4 {[%clk 0:01:01.3]} 27... d5 {[%clk 0:00:12.1]} 28. f4
{[%clk 0:00:57]} 28... Qxg4 {[%clk 0:00:10.2]} 29. Qxg4 {[%clk 0:00:54.7]} 29...
hxg4 {[%clk 0:00:11.1]} 30. Ree1 {[%clk 0:00:55.3]} 30... Nxd4 {[%clk 0:00:11]}
31. Red1 {[%clk 0:00:53.8]} 31... Nf5 {[%clk 0:00:11.1]} 0-1

[Event "*** Titled Tuesday Blitz"]
[Site "Chess.com"]
[Date "2020.04.14"]
[Round "7"]
[White "Dynamikus"]
[Black "eCztery"]
[Result "1-0"]
[WhiteElo "2759"]
[BlackElo "2420"]
[TimeControl "180+1"]
[EndTime "11:13:18 PDT"]
[Termination "Dynamikus won by resignation"]

1. Nf3 {[%clk 0:03:00.9]} 1... c5 {[%clk 0:02:49.5]} 2. e4 {[%clk 0:03:00.6]}
2... Nc6 {[%clk 0:02:47.9]} 3. d4 {[%clk 0:03:01.2]} 3... cxd4 {[%clk
0:02:47.8]} 4. Nxd4 {[%clk 0:03:02.1]} 4... g6 {[%clk 0:02:47.6]} 5. c4 {[%clk
0:03:00.8]} 5... Nf6 {[%clk 0:02:47.1]} 6. Nc3 {[%clk 0:03:00.2]} 6... Nxd4
{[%clk 0:02:47.6]} 7. Qxd4 {[%clk 0:03:01.1]} 7... d6 {[%clk 0:02:48]} 8. Bg5
{[%clk 0:02:58.7]} 8... Bg7 {[%clk 0:02:48.2]} 9. Qd2 {[%clk 0:02:58.9]} 9...
O-O {[%clk 0:02:48]} 10. f3 {[%clk 0:02:59]} 10... a5 {[%clk 0:02:45.6]} 11. Rc1
{[%clk 0:02:57.7]} 11... a4 {[%clk 0:02:45.6]} 12. Bd3 {[%clk 0:02:51.4]} 12...
Qa5 {[%clk 0:02:45.2]} 13. O-O {[%clk 0:02:50.4]} 13... Be6 {[%clk 0:02:42.6]}
14. Be3 {[%clk 0:02:29.9]} 14... Rfc8 {[%clk 0:02:40.7]} 15. Qe2 {[%clk
0:02:29.2]} 15... a3 {[%clk 0:02:04.4]} 16. b3 {[%clk 0:02:25.4]} 16... Ng4
{[%clk 0:01:44]} 17. Bd2 {[%clk 0:02:25.2]} 17... Bd4+ {[%clk 0:01:19.4]} 18.
Kh1 {[%clk 0:02:24.7]} 18... Nxh2 {[%clk 0:00:22]} 19. Kxh2 {[%clk 0:02:14.5]}
19... Qh5+ {[%clk 0:00:16.4]} 20. Kg3 {[%clk 0:02:15.1]} 20... Ra5 {[%clk
0:00:15.9]} 21. f4 {[%clk 0:02:02.6]} 21... Qh6 {[%clk 0:00:10.7]} 22. Nd5
{[%clk 0:01:51.5]} 22... Bxd5 {[%clk 0:00:07.1]} 23. exd5 {[%clk 0:01:48.5]}
23... Rac5 {[%clk 0:00:03.2]} 24. Rh1 {[%clk 0:01:47.7]} 24... Qg7 {[%clk
0:00:02.9]} 25. Qxe7 {[%clk 0:01:42.7]} 25... R5c7 {[%clk 0:00:02.9]} 26. Qe2
{[%clk 0:01:40.7]} 26... Bb2 {[%clk 0:00:03.8]} 27. Rce1 {[%clk 0:01:36.6]}
27... f5 {[%clk 0:00:02.5]} 28. Bb4 {[%clk 0:01:23.2]} 28... Bf6 {[%clk
0:00:03.4]} 29. Bxd6 {[%clk 0:01:22.4]} 29... g5 {[%clk 0:00:02]} 30. Qe6+
{[%clk 0:01:15]} 30... Kh8 {[%clk 0:00:01.6]} 31. Qe8+ {[%clk 0:01:08.6]} 31...
Rxe8 {[%clk 0:00:01.1]} 32. Rxe8+ {[%clk 0:01:09.5]} 32... Qg8 {[%clk
0:00:01.6]} 33. Rxg8+ {[%clk 0:01:09.5]} 33... Kxg8 {[%clk 0:00:02.5]} 34. Bxc7
{[%clk 0:01:09.9]} 34... gxf4+ {[%clk 0:00:03]} 35. Bxf4 {[%clk 0:01:10.8]}
35... Bb2 {[%clk 0:00:03.6]} 1-0

[Event "*** Titled Tuesday Blitz"]
[Site "Chess.com"]
[Date "2020.04.14"]
[Round "7"]
[White "Jumbo"]
[Black "SCIM"]
[Result "1-0"]
[WhiteElo "2848"]
[BlackElo "2593"]
[TimeControl "180+1"]
[EndTime "11:13:18 PDT"]
[Termination "Jumbo won by resignation"]

1. d4 {[%clk 0:03:00.9]} 1... Nf6 {[%clk 0:02:59.2]} 2. Bf4 {[%clk 0:02:59.9]}
2... g6 {[%clk 0:02:55.1]} 3. Nc3 {[%clk 0:02:59.1]} 3... d5 {[%clk 0:02:52.7]}
4. e3 {[%clk 0:02:59.2]} 4... Bg7 {[%clk 0:02:50.7]} 5. Nb5 {[%clk 0:02:57.5]}
5... Na6 {[%clk 0:02:46.7]} 6. c4 {[%clk 0:02:57.6]} 6... c6 {[%clk 0:02:40.3]}
7. Nc3 {[%clk 0:02:57]} 7... O-O {[%clk 0:02:38.6]} 8. Nf3 {[%clk 0:02:39.2]}
8... dxc4 {[%clk 0:02:36.5]} 9. Bxc4 {[%clk 0:02:38.4]} 9... b5 {[%clk
0:02:36.4]} 10. Be2 {[%clk 0:02:36.7]} 10... b4 {[%clk 0:02:29]} 11. Na4 {[%clk
0:02:34.2]} 11... Nd5 {[%clk 0:02:25.3]} 12. Be5 {[%clk 0:02:34.1]} 12... Nb6
{[%clk 0:02:05.3]} 13. O-O {[%clk 0:02:30.5]} 13... Nxa4 {[%clk 0:01:53.1]} 14.
Qxa4 {[%clk 0:02:31.4]} 14... Qb6 {[%clk 0:01:53.2]} 15. Rfc1 {[%clk 0:02:18.9]}
15... Bb7 {[%clk 0:01:39.7]} 16. Bxg7 {[%clk 0:02:16]} 16... Kxg7 {[%clk
0:01:39]} 17. Ne5 {[%clk 0:02:16.6]} 17... Rfc8 {[%clk 0:01:22.5]} 18. Nc4
{[%clk 0:02:06.8]} 18... Qc7 {[%clk 0:00:57.3]} 19. Na5 {[%clk 0:02:05.3]} 19...
Nb8 {[%clk 0:00:45.9]} 20. Qxb4 {[%clk 0:02:04.3]} 20... Ba6 {[%clk 0:00:45.3]}
21. Bf3 {[%clk 0:02:04.1]} 21... Qb6 {[%clk 0:00:40.3]} 22. Qxb6 {[%clk
0:01:51.2]} 22... axb6 {[%clk 0:00:40.4]} 23. Nxc6 {[%clk 0:01:51.7]} 23... Nxc6
{[%clk 0:00:36.8]} 24. Bxc6 {[%clk 0:01:51.3]} 24... Ra7 {[%clk 0:00:36.9]} 25.
Rc3 {[%clk 0:01:50.9]} 25... Rac7 {[%clk 0:00:25.9]} 26. Rac1 {[%clk 0:01:50.5]}
26... Kf6 {[%clk 0:00:22.2]} 27. f4 {[%clk 0:01:49.6]} 27... Rd8 {[%clk
0:00:20.4]} 28. Kf2 {[%clk 0:01:48.7]} 28... Ra7 {[%clk 0:00:20.5]} 29. a3
{[%clk 0:01:48.7]} 29... Bc8 {[%clk 0:00:18.9]} 30. Bf3 {[%clk 0:01:39.7]} 30...
Be6 {[%clk 0:00:18.4]} 31. g4 {[%clk 0:01:39.2]} 31... g5 {[%clk 0:00:18.1]} 32.
Kg3 {[%clk 0:01:38.6]} 32... h6 {[%clk 0:00:15.5]} 33. h4 {[%clk 0:01:38]} 33...
gxh4+ {[%clk 0:00:15]} 34. Kxh4 {[%clk 0:01:37.8]} 34... Rg8 {[%clk 0:00:15.9]}
35. e4 {[%clk 0:01:37.5]} 35... Kg7 {[%clk 0:00:15.8]} 36. d5 {[%clk 0:01:36.6]}
36... Bd7 {[%clk 0:00:16.1]} 37. e5 {[%clk 0:01:37.2]} 37... Ra4 {[%clk
0:00:13.5]} 38. Rc4 {[%clk 0:01:37.5]} 38... Ra5 {[%clk 0:00:13.5]} 39. Rc7
{[%clk 0:01:36.2]} 39... Rd8 {[%clk 0:00:13]} 40. Kg3 {[%clk 0:01:28.5]} 40...
Ra4 {[%clk 0:00:12.6]} 41. R1c4 {[%clk 0:01:27.8]} 41... Ra5 {[%clk 0:00:11.5]}
42. Rb7 {[%clk 0:01:25.5]} 42... Rb5 {[%clk 0:00:09.2]} 43. b4 {[%clk
0:01:24.8]} 1-0

[Event "*** Titled Tuesday Blitz"]
[Site "Chess.com"]
[Date "2020.04.14"]
[Round "7"]
[White "Salem-AR"]
[Black "Oleksandr_Bortnyk"]
[Result "1-0"]
[WhiteElo "2920"]
[BlackElo "3040"]
[TimeControl "180+1"]
[EndTime "11:13:24 PDT"]
[Termination "Salem-AR won by checkmate"]

1. d4 {[%clk 0:03:00.9]} 1... d6 {[%clk 0:02:58.4]} 2. e4 {[%clk 0:02:57.2]}
2... Nf6 {[%clk 0:02:58.5]} 3. f3 {[%clk 0:02:56.7]} 3... e5 {[%clk 0:02:56.6]}
4. d5 {[%clk 0:02:57.1]} 4... Be7 {[%clk 0:02:54.3]} 5. Be3 {[%clk 0:02:56.7]}
5... c6 {[%clk 0:02:36.3]} 6. c4 {[%clk 0:02:55.1]} 6... O-O {[%clk 0:02:35.6]}
7. Nc3 {[%clk 0:02:55.1]} 7... a5 {[%clk 0:02:35.2]} 8. Bd3 {[%clk 0:02:54.6]}
8... cxd5 {[%clk 0:02:33.7]} 9. cxd5 {[%clk 0:02:53.7]} 9... Nbd7 {[%clk
0:02:20.8]} 10. Nge2 {[%clk 0:02:51.5]} 10... Nc5 {[%clk 0:02:21.1]} 11. Bb5
{[%clk 0:02:38.1]} 11... Ne8 {[%clk 0:02:08.8]} 12. O-O {[%clk 0:02:34.9]} 12...
f5 {[%clk 0:02:09.3]} 13. exf5 {[%clk 0:02:35.5]} 13... Bxf5 {[%clk 0:02:08.9]}
14. Ng3 {[%clk 0:02:36.2]} 14... Bg6 {[%clk 0:02:08.1]} 15. Qd2 {[%clk
0:02:27.6]} 15... b6 {[%clk 0:02:04.1]} 16. Rae1 {[%clk 0:02:15.6]} 16... Bh4
{[%clk 0:02:00]} 17. f4 {[%clk 0:02:07.1]} 17... exf4 {[%clk 0:01:48]} 18. Bxf4
{[%clk 0:02:07.3]} 18... Nf6 {[%clk 0:01:45.5]} 19. Re2 {[%clk 0:01:51]} 19...
Ra7 {[%clk 0:01:38.4]} 20. Qd4 {[%clk 0:01:27.2]} 20... Ng4 {[%clk 0:01:03.1]}
21. Bxd6 {[%clk 0:01:21.4]} 21... Rxf1+ {[%clk 0:01:02.9]} 22. Nxf1 {[%clk
0:01:12.2]} 22... Qxd6 {[%clk 0:00:54.5]} 23. Qxg4 {[%clk 0:01:11.7]} 23... Bd8
{[%clk 0:00:32.8]} 24. Bc4 {[%clk 0:00:42.9]} 24... Ra8 {[%clk 0:00:20.4]} 25.
Nb5 {[%clk 0:00:41.7]} 25... Qf6 {[%clk 0:00:20.7]} 26. d6+ {[%clk 0:00:38.6]}
26... Kh8 {[%clk 0:00:17.6]} 27. Rf2 {[%clk 0:00:37.7]} 27... h5 {[%clk
0:00:17]} 28. Rxf6 {[%clk 0:00:36.7]} 28... hxg4 {[%clk 0:00:16.1]} 29. Rxg6
{[%clk 0:00:37.2]} 29... Bf6 {[%clk 0:00:14.2]} 30. Rxg4 {[%clk 0:00:36]} 30...
Bxb2 {[%clk 0:00:14.5]} 31. Rh4# {[%clk 0:00:36.5]} 1-0